Cogmind - Beta 13 @@@ ROGUE MODE // 2024.04.04 @ 18:28:53 Player: Hoarfrost Trickle Result: Destroyed by G-47 Trooper with Particle Gun Performance ------------- Evolutions (1) 500 Regions Visited (2) 400 Robots Destroyed (13) 65 Value Destroyed (325) 325 Prototype IDs (2) 40 Alien Tech Used (0) 0 Bonus (0) 0 TOTAL SCORE: 1330 Bonus ------- None Cogmind --------- Core Integrity 0/400 Matter 373/500 Energy 95/100 System Corruption 0% Temperature Cool (9) Movement Flying (280) Ox3 Location -9/Materials Parts ------- > --- POWER (1) -------- (None) > --- PROPULSION (2) --- Flight Unit > --- UTILITY (3) ------ Medium Storage Unit High-capacity Matter Pod > --- WEAPON (3) ------- (None) > --- INVENTORY (10) --- Light Ion Engine Peak State ------------ > --- POWER ------------ (None) > --- PROPULSION ------- Wheel > --- UTILITY ---------- Medium Storage Unit High-capacity Matter Pod > --- WEAPON ----------- Small Laser Small Laser Maul > --- INVENTORY -------- Light Ion Engine Aluminum Leg Aluminum Leg Flight Unit Small Laser Light Assault Rifle [Rating: 7] Favorites ----------- Power None Propulsion Wheel Wheel Wheel Flight Unit Flight Unit Utility High-capacity Matter Pod Storage High-capacity Matter Pod Protection Utility Shielding Weapon Small Laser Energy Gun Small Laser Ballistic Gun Light Assault Rifle Impact Weapon Maul Build | -11 -10 -9 ------- Run | Yrd Mat Mat Slots Evolved 2 | . . 2 Power . | . . . Propulsion . | . . . Utility 1 | . . 1 Weapon 1 | . . 1 Parts Attached 16 | 4 8 4 Power . | . . . Engine . | . . . Core . | . . . Reactor . | . . . Propulsion 4 | 2 1 1 Treads . | . . . Leg . | . . . Wheel 3 | 2 1 . Hover . | . . . Flight 1 | . . 1 Utility 4 | . 4 . Device . | . . . Storage 3 | . 3 . Processor . | . . . Hackware . | . . . Protection 1 | . 1 . Artifact . | . . . Weapon 8 | 2 3 3 Energy Gun 5 | 1 3 1 Energy Cannon . | . . . Ballistic Gun 2 | 1 . 1 Ballistic Cannon . | . . . Launcher . | . . . Special Weapon . | . . . Impact Weapon 1 | . . 1 Slashing Weapon . | . . . Piercing Weapon . | . . . Special Melee Weapon . | . . . Unidentified Prototypes . | . . . Parts Lost 9 | . 3 6 Power . | . . . Propulsion 3 | . 2 1 Utility . | . . . Weapon 6 | . 1 5 Highest Loss Streak 6 | . 1 6 To Critical Strikes . | . . . Average Slot Usage (%) 70 | . 74 56 Wheel 17 | . 20 7 Storage 23 | . 24 22 Energy Gun 21 | . 23 17 Ballistic Gun 3 | . 4 . Impact Weapon 2 | . . 8 Naked Turns . | . . . Heaviest Build 19 | 2 16 19 Greatest Support 20 | 20 20 10 Greatest Overweight (x) 5 | . 1 5 Average Overweight (x) . | . . 1 Largest Inventory Capacity 10 | 5 10 10 Average Capacity 8 | 5 8 10 Most Carried 7 | 5 7 7 Average Carried 5 | 3 5 5 Final Capacity 10 | 5 10 10 Final Carried 6 | 5 6 1 Class Distribution -------------------- 100% | Mutant Dominant Class ---------------- Mutant | -10/Materials Mutant | -9/Materials Resources | -11 -10 -9 ----------- Run | Yrd Mat Mat Matter Collected 416 | 242 174 . Remotely . | . . . Salvage Created 385 | 41 234 110 Parts 31 | 3 18 10 Haulers Intercepted . | . . . Recyclers Shooed . | . . . Parts Field Recycled . | . . . Retrieved Matter . | . . . Parts Self-Destructed . | . . . Prevented . | . . . Kills | -11 -10 -9 ------- Run | Yrd Mat Mat Combat Hostiles Destroyed 10 | 1 7 2 Guns 10 | 1 7 2 Classes Destroyed 6 | 2 3 1 Worker 1 | 1 . . Builder 1 | . 1 . Watcher 1 | . 1 . Swarmer 3 | . 3 . Grunt 5 | 1 4 . Sentry 2 | . . 2 Best Kill Streak 5 | 1 5 2 Combat Bots Only 4 | 1 4 2 Max Kills in Single Turn 2 | 1 2 2 Gunslinging 1 | . . 1 Exploded . | . . . Melee . | . . . Uniques/NPCs Destroyed . | . . . Combat | -11 -10 -9 -------- Run | Yrd Mat Mat Hostile Shots Fired 190 | 5 77 108 Missed 59 | 2 31 26 Damage Taken 1371 | 33 467 871 Core 604 | 12 178 414 Absorbed by Shields . | . . . Core Remaining (%) 59 | 95 24 . Volleys Fired 62 | 6 45 11 Largest 2 | 2 2 2 Hottest 80 | 60 80 80 Shots Fired 107 | 12 77 18 Gun 107 | 12 77 18 Cannon . | . . . Launcher . | . . . Special . | . . . Kinetic 28 | 6 20 2 Thermal 79 | 6 57 16 Explosive . | . . . Electromagnetic . | . . . Robot Hit Streak 8 | 6 5 8 Robot Miss Streak 5 | 3 5 1 Penetration Max . | . . . Secondary Targets 2 | . 1 1 Max Gunslinging Chain 1 | . 1 1 Shots Hit Robots 59 | 7 39 13 Core Hits 26 | 3 17 6 Critical Kills . | . . . Critical Parts Destroyed . | . . . Critical Strikes . | . . . Melee Attacks . | . . . Impact . | . . . Slashing . | . . . Piercing . | . . . Sneak Attacks . | . . . Combat Hostiles . | . . . Follow-up Attacks . | . . . Damage Inflicted 676 | 66 454 156 Guns 676 | 66 454 156 Cannons . | . . . Explosions . | . . . Melee . | . . . Ramming . | . . . Kinetic 129 | 23 89 17 Thermal 547 | 43 365 139 Explosive . | . . . Electromagnetic . | . . . Impact . | . . . Slashing . | . . . Piercing . | . . . Highest Corruption . | . . . Average Corruption . | . . . Corruption Purged . | . . . Corruption Blocked . | . . . Overload Shots . | . . . Overflow Damage . | . . . Projectiles . | . . . Explosions . | . . . Melee . | . . . Knockbacks . | . . . Impact . | . . . Kinetic . | . . . Secondary . | . . . Self-Inflicted Damage . | . . . Shots . | . . . Rammed . | . . . Targets Rammed . | . . . Kicked . | . . . Crushed . | . . . Highest Temperature 102 | 16 102 49 Average Temperature 28 | 10 31 25 Received Heat Transfer 468 | 18 153 297 Siege Activations . | . . . Robots Corrupted . | . . . Combat Hostiles . | . . . Parts Fried . | . . . Impact Corruptions . | . . . Robots Melted . | . . . Combat Hostiles . | . . . Parts Melted 1 | . 1 . Heat Transferred 1250 | 100 825 325 Parts Sabotaged . | . . . Parts Stolen . | . . . Parts Stripped . | . . . Power Chain Reactions . | . . . Alert | -11 -10 -9 ------- Run | Yrd Mat Mat Peak Influence 257 | 25 257 173 Initial 108 | . 16 108 Average 116 | 3 145 120 Maximum Alert Level 1 | . 1 . Low Security (%) 78 | 100 65 100 Level 1 21 | . 34 . Level 2 . | . . . Level 3 . | . . . Level 4 . | . . . Level 5 . | . . . High Security . | . . . Max Security . | . . . Squads Dispatched 2 | . . 2 Investigation 1 | . . 1 Extermination . | . . . Reinforcement 1 | . . 1 Assault . | . . . Garrison . | . . . Intercept . | . . . Searches Triggered . | . . . Construction Impeded . | . . . Haulers Reinforced . | . . . Active Scanning Responses . | . . . Cargo Convoy Interrupts . | . . . Stealth | -11 -10 -9 --------- Run | Yrd Mat Mat Distress Signals 1 | . . 1 Communications Jammed . | . . . Distress Signals . | . . . Times Spotted 29 | 1 16 12 Peak Tracking Total 10 | 1 5 10 Tactical Retreats . | . . . Traps | -11 -10 -9 ------- Run | Yrd Mat Mat Traps Triggered 1 | . . 1 Indirectly . | . . . Trap Hack Attempts . | . . . Triggered . | . . . Disarmed . | . . . Reprogrammed . | . . . Reused . | . . . Traps Extracted . | . . . Installed . | . . . Triggered . | . . . Machines | -11 -10 -9 ---------- Run | Yrd Mat Mat Machines Disabled . | . . . Max in Single Turn . | . . . Machines Repaired . | . . . Machines Dismantled . | . . . Machines Sabotaged . | . . . Overloaded Fab Kills . | . . . Hacking | -11 -10 -9 --------- Run | Yrd Mat Mat Machines Accessed 3 | . 3 . Terminals 3 | . 3 . Fabricators . | . . . Repair Stations . | . . . Recycling Units . | . . . Scanalyzers . | . . . Garrison Access . | . . . Total Hacks 13 | . 13 . Successful 7 | . 7 . Failed 6 | . 6 . Catastrophic . | . . . Database Lockouts . | . . . Manual . | . . . Terminals 13 | . 13 . Fabricators . | . . . Repair Stations . | . . . Recycling Units . | . . . Scanalyzers . | . . . Garrison Access . | . . . Terminal Hacks 7 | . 7 . Prototype ID Bank 1 | . 1 . Branch Access Points 1 | . 1 . Alert Level 1 | . 1 . Locate Traps 1 | . 1 . Patrol Status 1 | . 1 . Zone Layout 2 | . 2 . Fabricator Hacks . | . . . Repair Station Hacks . | . . . Recycling Unit Hacks . | . . . Scanalyzer . | . . . Garrison Access Hacks . | . . . Unauthorized Hacks . | . . . Terminals . | . . . Fabricators . | . . . Repair Stations . | . . . Recycling Units . | . . . Scanalyzers . | . . . Garrison Access . | . . . Data Cores Recovered . | . . . Used . | . . . Hacking Detections 3 | . 3 . Full Trace Events 3 | . 3 . Feedback Events . | . . . Feedback Blocked . | . . . Robot Schematics Acquired . | . . . Robots Built . | . . . Authchips . | . . . Time . | . . . Total Robot Build Rating . | . . . Part Schematics Acquired . | . . . Parts Built . | . . . Authchips . | . . . Time . | . . . Total Part Build Rating . | . . . Parts Repaired . | . . . Time . | . . . Parts Recycled . | . . . Recycled Matter . | . . . Retrieved Matter . | . . . Retrieved Components . | . . . Parts Scanalyzed . | . . . Part Schematics Acquired . | . . . Parts Damaged . | . . . Bothacking | -11 -10 -9 ------------ Run | Yrd Mat Mat Used RIF Installer . | . . . Robots Hacked . | . . . Non-combat . | . . . Combat . | . . . Robot Hacks Applied . | . . . Relay Couplers Released . | . . . Fabnet Peak Effective % . | . . . Robots Rewired . | . . . Allies Hacked . | . . . Hacks Repelled . | . . . Allies | -11 -10 -9 -------- Run | Yrd Mat Mat Total Allies . | . . . Largest Group . | . . . Highest-Rated Group . | . . . Highest-Rated Ally . | . . . Total Orders . | . . . Ally Attacks . | . . . Total Damage . | . . . Kills . | . . . Allies Corrupted . | . . . Allies Melted . | . . . Intel | -11 -10 -9 ------- Run | Yrd Mat Mat Robot Analysis Total . | . . . Derelict Logs Recovered . | . . . Drone Launches . | . . . Drone Recoveries . | . . . Exploration | -11 -10 -9 ------------- Run | Yrd Mat Mat Turns Passed 486 | 83 303 100 Spaces Moved 334 | 74 198 62 Core 23 | 20 . 3 Treads . | . . . Legs . | . . . Wheels 310 | 54 198 58 Hover . | . . . Flight 1 | . . 1 Fastest Speed 50 | 50 80 95 Average Speed 86 | 71 86 107 Slowest Speed 300 | 80 95 300 Overloaded Moves . | . . . Propulsion Burnouts . | . . . Robots Hopped . | . . . Cave-ins Triggered . | . . . Exploration Rate (%) 13 | 5 28 6 Regions Visited 2 Branch Regions . Pre-discovered Areas . | . . . Known Exits Taken . | . . . Unknown Exits Taken 2 | 1 1 . Scrap Searched . | . . . Spaces Dug . | . . . Terrain Destroyed . | . . . Melee . | . . . Projectile . | . . . AOE . | . . . Terrain Rammed . | . . . Walls Destroyed . | . . . Machines Disabled . | . . . Actions | -11 -10 -9 --------- Run | Yrd Mat Mat Total 427 | 92 255 80 Wait . | . . . Move 332 | 73 197 62 Hop . | . . . Pick Up 13 | 9 3 1 Fast Attach 4 | . 4 . Attach 10 | 4 2 4 Detach . | . . . Swap 2 | . 2 . Drop 4 | . 2 2 Fire 62 | 6 45 11 Melee . | . . . Ram . | . . . Kick . | . . . Crush . | . . . Escape Stasis . | . . . Rewire . | . . . Trap . | . . . Miscellaneous . | . . . Route ------- -11/Scrapyard -10/Materials (discovered 3 exits: [*Mat] / Min x2) -9/Materials History --------- Turn | Location | Event 2 | -11/Scrapyard | Met Revision 17 62 | -11/Scrapyard | Discovered new exit (range 8) 84 | -11/Scrapyard | Entered Materials 215 | -10/Materials | Identified exit to Mines 216 | -10/Materials | Discovered new exit (range 16) 261 | -10/Materials | Core integrity fell below 50% 301 | -10/Materials | Build established: Mutant 387 | -10/Materials | Entered another Materials area 387 | -9/Materials | Evolved 2 slots: Utility x1, Weapon x1 470 | -9/Materials | Core integrity fell below 50% 481 | -9/Materials | Core integrity fell below 20% 487 | -9/Materials | Destroyed by G-47 Trooper with Particle Gun Last Messages --------------- G-34 Mercenary unfolds itself. S-10 Pest destroyed. Y-45 Defender destroyed. Switching to secondary target: Y-45 Defender. Y-45 Defender destroyed. R-06 Scavenger collects Imp. Ion Engine. Sml. Laser destroyed. Wheel destroyed. R-06 Scavenger collects Heat Sink. Sml. Laser destroyed. R-06 Scavenger collects Beam Rifle. R-06 Scavenger collects Hvy. Assault Rifle. Lgt. Assault Rifle destroyed. Sml. Laser destroyed. M-13 Machinist repairs G-34 Mercenary. Maul destroyed. Flying robots can pass through spaces occupied by others, even hostile robots. Dropped Aluminum Leg. [Achievement: First Step to Greatness] Map ----- +----------------------------------------------------+ | ???????????????????????????????????? | | ???????????????????????????????????? | | ???????????????????????????????????? | | ???????????????????????????????????? | | ???????????????????????????????????? | | ???????????????????????????????????? | | ???????????????????????????????????? | | ????????????????????????#######????? | | ??????????############### #????? | | ??????????# #????? | | ??????????# #????? | | ??????????# #????? | | ??????????## ########+### #????? | | ???????????# #???# ## ##????? | | ???????????# #???# ## #?????? | | ???????????# #???# ## #?????? | | ???????????# #???# ## ###+### | | ???????????#r#???# ## | | ???????????# #???# + | | ???????????# #???######### | | ???????????# #???????????#######+### | | ?????????###g#?????????????????? ? | | ?????????# m#???????????????????" | | ?????????# gg#????????????????????? | | ?????????# ==#?????????????????????? | | ?????????# @ #?????????????????????? | | ?????????# #?????????????????????? | | ?????????# #?????????????????????? | | ?????????# #?????????????????????? | | ?????????# #?????????????????????? | | ?????????# !s#?????????????????????? | | ?????????#=[!#?????????????????????? | | ?????????/s=%#?????????????????????? | | ?????????#*==#?????????????????????? | | ?????????#!%*#?????????????????????? | | ?????????# #?????????????????????? | | ????????? ?????????????????????? | | ????????? ?????????????????????? | | ????????? w ?????????????????????? | | ????????? ?????????????????????? | | ????????? ?????????????????????? | | ?????????# #?????????????????????? | | ?????????? ??????????????????????? | | ???????????????????????????????????? | | ???????????????????????????????????? | | ???????????????????????????????????? | | ???????????????????????????????????? | | ???????????????????????????????????? | | ???????????????????????????????????? | | ???????????????????????????????????? | +----------------------------------------------------+ Best States ------------- Heat Dissipation 28 Energy Generation 5 Energy Capacity 100 Matter Stores 400 Matter Capacity 700 Sight Range 16 Terrain Scan Density 10 Utility Shielding 33 Evasion (%) 50 Item Schematics ----------------- None Robot Schematics ------------------ None Fabricated ------------ Nothing Alien Tech Used ----------------- None Achievements -------------- First Step to Greatness Storm Trooper Uninvited Guest Challenges ------------ None Game ------ Seed SpacefoldTrackerDesublimator Manual? 0 Play Time 00:31:13 Cumulative 0.5 hours Start 2024.04.04 @ 17:45:24 End 2024.04.04 @ 18:28:53 Sessions 1 Manual Loads 0 Difficulty Rogue Special Mode None Game No. 1 Rogue 1 Adventurer 0 Explorer 0 Win Type - Total 0 Types 0/0/0/0/0/0/0/0/0 Lore% 0 Gallery% 0 Achievement% 1 Wizard Run 0 Options --------- Layout 1 ASCII 0 Keyboard 0 Movement Mouse Keybinds 0 Fullscreen 1 Font 32/SmallcapsGlow Map View 50x35 Zoom Use 0% Tactical HUD 0 Map Filters NONE Filters NONE Steam 1 RUN: 6ec242ef-ae8b-40c4-a326-260ae9be436f